fUST/lending_fUST_20251031
["ID","MTS","AMOUNT","RATE_DAILY","PERIOD"]
[392762325,1761924634707,-500.0,0.00028565,4]
[392762326,1761924634716,-516.85650067,0.00028565,4]
[392762327,1761924634725,-500.0,0.00028565,4]
[392762328,1761924634735,-729.51,0.00028565,4]
[392762329,1761924634744,-500.0,0.00028565,4]
[392762330,1761924634756,-606.57514047,0.00028565,4]
[392762331,1761924634775,-500.0,0.00028565,4]
[392762332,1761924634785,-500.0,0.00028565,4]
[392762333,1761924634794,-513.51,0.00028565,4]
[392762334,1761924634803,-500.0,0.00028565,4]
[392762335,1761924634814,-500.0,0.00028565,4]
[392762336,1761924634824,-500.0,0.00028565,4]
[392762337,1761924634836,-500.0,0.00028565,4]
[392762338,1761924634845,-500.0,0.00028565,4]
[392762339,1761924634855,-500.0,0.00028565,4]
[392762340,1761924634864,-500.0,0.00028565,4]
[392762341,1761924634874,-500.0,0.00028565,4]
[392762342,1761924634883,-506.8274197,0.00028565,4]
[392762343,1761924634892,-500.0,0.00028565,4]
[392762344,1761924634902,-500.0,0.00028565,4]
[392762345,1761924634911,-500.0,0.00028565,4]
[392762346,1761924634920,-500.0,0.00028565,4]
[392762347,1761924634930,-500.0,0.00028565,4]
[392762348,1761924634939,-500.0,0.00028565,4]
[392762349,1761924634947,-506.84455337,0.00028565,4]
[392762350,1761924634957,-500.0,0.00028565,4]
[392762351,1761924634966,-500.0,0.00028565,4]
[392762352,1761924634975,-500.0,0.00028565,4]
[392762353,1761924634985,-500.0,0.00028565,4]
[392762354,1761924634995,-500.0,0.00028565,4]
[392762355,1761924635004,-500.0,0.00028573,5]
[392762356,1761924635014,-500.0,0.00028573,5]
[392762357,1761924635023,-500.0,0.00028573,5]
[392762358,1761924635032,-500.0,0.00028573,5]
[392762359,1761924635042,-500.0,0.00028573,5]
[392762360,1761924635051,-500.0,0.00028573,5]
[392762361,1761924635060,-500.0,0.00028573,5]
[392762362,1761924635070,-500.0,0.00028573,5]
[392762363,1761924635079,-218.99699237,0.00028663,2]
[392762364,1761924635088,-531.30253858,0.00028713,2]
[392762365,1761924635097,-500.0,0.00028818,4]
[392762366,1761924635107,-500.0,0.00028818,4]
[392762367,1761924635118,-3606.51,0.00028826,4]
[392762368,1761924635129,-500.0,0.00028826,4]
[392762369,1761924635138,-500.0,0.00028826,4]
[392762370,1761924635147,-1563.31,0.00028826,4]
[392762371,1761924635156,-833.07596949,0.00028828,2]
[392762372,1761924635286,-200.0,0.00028834,14]
[392762373,1761924635297,-500.0,0.00028834,4]
[392762374,1761924635307,-500.0,0.00028834,4]
[392762375,1761924635317,-500.0,0.00028834,4]
[392762376,1761924635327,-500.0,0.00028834,4]
[392762377,1761924635336,-500.0,0.00028834,4]
[392762378,1761924635346,-500.0,0.00028834,4]
[392762379,1761924635356,-500.0,0.00028834,4]
[392762380,1761924635366,-500.0,0.00028834,4]
[392762381,1761924635375,-255.0115582,0.00028834,4]
[392762382,1761924635385,-1102.65,0.00028834,3]
[392762383,1761924635394,-500.0,0.00028834,4]
[392762384,1761924635404,-941.22,0.00028836,4]
[392762385,1761924635414,-500.0,0.00028836,4]
[392762386,1761924635423,-500.0,0.00028836,4]
[392762387,1761924635433,-500.0,0.00028836,4]
[392762388,1761924635445,-500.0,0.00028836,4]
[392762389,1761924635454,-500.0,0.00028836,4]
[392762390,1761924635464,-500.0,0.00028836,4]
[392762391,1761924635473,-519.02271005,0.00028836,4]
[392762392,1761924635482,-500.0,0.00028836,4]
[392762393,1761924635491,-500.0,0.00028836,4]
[392762394,1761924635500,-242.04061331,0.00028836,4]
[392762395,1761924635510,-500.0,0.00028836,4]
[392762396,1761924635519,-500.0,0.00028836,4]
[392762397,1761924635528,-500.0,0.00028836,4]
[392762398,1761924635538,-500.0,0.00028836,4]
[392762399,1761924635548,-500.0,0.00028836,4]
[392762400,1761924635557,-500.0,0.00028836,4]
[392762401,1761924635566,-500.0,0.00028836,4]
[392762402,1761924635575,-500.0,0.00028836,4]
[392762403,1761924635585,-613.42,0.00028836,4]
[392762404,1761924635595,-500.0,0.00028836,4]
[392762405,1761924635604,-500.0,0.00028836,4]
[392762406,1761924635613,-500.0,0.00028836,4]
[392762407,1761924635622,-500.0,0.00028836,4]
[392762408,1761924635632,-500.0,0.00028836,4]
[392762409,1761924635641,-500.0,0.00028836,4]
[392762410,1761924635650,-500.0,0.00028836,4]
[392762411,1761924635660,-500.0,0.00028836,4]
[392762412,1761924635669,-500.0,0.00028836,4]
[392762413,1761924635679,-1062.14,0.00028836,4]
[392762414,1761924635688,-534.73122033,0.00028836,4]
[392762415,1761924635697,-500.0,0.00028836,4]
[392762416,1761924635707,-500.0,0.00028836,4]
[392762417,1761924635716,-500.0,0.00028836,4]
[392762418,1761924635725,-548.22,0.00028836,4]
[392762419,1761924635735,-923.08,0.00028836,4]
[392762420,1761924635744,-632.47842852,0.00028836,4]
[392762421,1761924635753,-500.0,0.00028836,4]
[392762422,1761924635763,-500.0,0.00028836,4]
[392762423,1761924635772,-500.0,0.00028836,4]
[392762424,1761924635781,-3946.42,0.00028836,4]
[392762425,1761924635791,-1887.64,0.00028836,4]
[392762426,1761924635801,-500.0,0.00028836,4]
[392762427,1761924635811,-500.0,0.00028836,4]
[392762428,1761924635820,-500.0,0.00028836,4]
[392762429,1761924635829,-500.0,0.00028838,4]
[392762430,1761924635842,-500.0,0.00028839,4]
[392762431,1761924635851,-500.0,0.00028839,4]
[392762432,1761924635860,-500.0,0.00028839,4]
[392762433,1761924635870,-366.90137593,0.00028839,4]
[392762443,1761924638543,-500.0,0.00028544,2]
[392762444,1761924638552,-451.37797583,0.00028544,2]
[392762445,1761924638562,-501.22076371,0.00028544,2]
[392762446,1761924638571,-500.0,0.00028544,2]
[392762447,1761924638581,-154.12284533,0.00028544,2]
[392762448,1761924638590,-500.0,0.00028544,2]
[392762449,1761924638600,-500.0,0.00028544,2]
[392762450,1761924638610,-500.0,0.00028544,2]
[392762451,1761924638619,-500.0,0.00028544,2]
[392762452,1761924638629,-500.0,0.00028544,2]
[392762453,1761924638638,-500.0,0.00028544,2]
[392762454,1761924638647,-500.0,0.00028544,2]
[392762455,1761924638657,-500.0,0.00028544,2]
[392762456,1761924638666,-500.0,0.00028544,2]
[392762457,1761924638676,-500.0,0.00028544,2]
[392762458,1761924638685,-500.0,0.00028544,2]
[392762459,1761924638694,-500.0,0.00028544,2]
[392762460,1761924638704,-500.0,0.00028544,2]
[392762461,1761924638713,-500.0,0.00028544,2]
[392762462,1761924638723,-444.87995786,0.00028544,2]
[392762463,1761924638732,-500.0,0.00028544,2]
[392762464,1761924638742,-500.0,0.00028544,2]
[392762465,1761924638751,-500.0,0.00028544,2]
[392762466,1761924638760,-500.0,0.00028544,2]
[392762467,1761924638770,-500.0,0.00028544,2]
[392762468,1761924638780,-500.0,0.00028544,2]
[392762469,1761924638789,-500.0,0.00028544,2]
[392762470,1761924638799,-500.0,0.00028544,2]
[392762471,1761924638809,-500.0,0.00028544,2]
[392762472,1761924638818,-500.0,0.00028544,2]
[392762473,1761924638828,-500.0,0.00028544,2]
[392762474,1761924638838,-321.42608845,0.00028544,2]
[392762475,1761924638847,-500.0,0.00028544,2]
[392762476,1761924638857,-414.87729334,0.00028544,2]
[392762477,1761924638869,-85.12270666,0.00028544,2]
[392762478,1761924638879,-500.0,0.00028544,2]
[392762479,1761924638890,-500.0,0.00028544,2]
[392762480,1761924638900,-500.0,0.00028544,2]
[392762481,1761924638910,-500.0,0.00028544,2]
[392762482,1761924638920,-500.0,0.00028544,2]
[392762483,1761924638930,-500.0,0.00028544,2]
[392762484,1761924638940,-500.0,0.00028544,2]
[392762485,1761924638951,-500.0,0.00028544,2]
[392762486,1761924638961,-500.0,0.00028544,2]
[392762487,1761924638971,-500.0,0.00028544,2]
[392762488,1761924638981,-500.0,0.00028544,2]
[392762489,1761924638991,-500.0,0.00028544,2]
[392762490,1761924639001,-500.0,0.00028544,2]
[392762491,1761924639011,-500.0,0.00028544,2]
[392762492,1761924639021,-500.0,0.00028544,2]
[392762493,1761924639031,-500.0,0.00028544,2]
[392762494,1761924639040,-500.0,0.00028544,2]
[392762495,1761924639051,-500.0,0.00028544,2]
[392762496,1761924639061,-500.0,0.00028544,2]
[392762497,1761924639072,-500.0,0.00028544,2]
[392762498,1761924639082,-500.0,0.00028544,2]
[392762499,1761924639092,-379.41721281,0.00028544,2]
[392762500,1761924639102,-500.0,0.00028544,2]
[392762501,1761924639112,-500.0,0.00028544,2]
[392762502,1761924639122,-500.0,0.00028544,2]
[392762503,1761924639132,-500.0,0.00028544,2]
[392762504,1761924639142,-500.0,0.00028544,2]
[392762505,1761924639154,-500.0,0.00028544,2]
[392762506,1761924639164,-500.0,0.00028544,2]
[392762507,1761924639175,-500.0,0.00028544,2]
[392762508,1761924639186,-500.0,0.00028544,2]
[392762509,1761924639198,-550.61556128,0.00028544,2]
[392762510,1761924639208,-500.0,0.00028544,2]
[392762511,1761924639220,-500.0,0.00028544,2]
[392762512,1761924639230,-606.81827973,0.00028544,2]
[392762513,1761924639241,-500.0,0.00028544,2]
[392762514,1761924639252,-500.0,0.00028544,2]
[392762515,1761924639261,-500.0,0.0002856,4]
[392762516,1761924639271,-625.10337073,0.00028562,4]
[392762517,1761924639283,-2294.08302073,0.00028562,4]
[392762518,1761924639294,-2493.23360854,0.00028562,4]
[392762519,1761924639305,-500.0,0.00028573,5]
[392762520,1761924639316,-500.0,0.00028834,4]
[392762521,1761924639326,-5412.42,0.00028836,4]
[392762522,1761924639336,-146.84947472,0.00028839,4]
[392762523,1761924639346,-500.0,0.00028839,4]
[392762524,1761924639355,-500.0,0.00028839,4]
[392762525,1761924639365,-500.0,0.00028839,4]
[392762526,1761924639375,-500.0,0.00028839,4]
[392762527,1761924639385,-500.0,0.00028839,4]
[392762528,1761924639394,-500.0,0.00028839,4]
[392762529,1761924639404,-500.0,0.00028839,4]
[392762530,1761924639414,-500.0,0.00028839,4]
[392762531,1761924639424,-500.0,0.00028839,4]
[392762532,1761924639434,-500.0,0.00028839,4]
[392762533,1761924639446,-513.11655009,0.00028839,4]
[392762534,1761924639455,-500.0,0.00028839,4]
[392762535,1761924639465,-500.0,0.00028839,4]
[392762536,1761924639474,-500.0,0.00028839,4]
[392762537,1761924639483,-500.0,0.00028839,4]
[392762538,1761924639492,-500.0,0.00028839,4]
[392762539,1761924639503,-500.0,0.00028839,4]
[392762540,1761924639512,-512.0858967,0.00028839,4]
[392762541,1761924639521,-500.0,0.00028839,4]
[392762542,1761924639531,-500.0,0.00028839,4]
[392762543,1761924639541,-500.0,0.00028839,4]
[392762544,1761924639550,-500.0,0.00028839,4]
[392762545,1761924639560,-500.0,0.00028839,4]
[392762546,1761924639570,-500.0,0.00028839,4]
[392762547,1761924639579,-604.93609204,0.00028839,4]
[392762548,1761924639588,-500.0,0.00028839,4]
[392762549,1761924639597,-363.45387946,0.00028839,4]
[392762550,1761924639607,-507.51297845,0.00028839,4]
[392762551,1761924639616,-500.0,0.00028839,4]
[392762552,1761924639625,-500.0,0.00028839,4]
[392762553,1761924639634,-500.0,0.00028839,4]
[392762554,1761924639644,-98.23170875,0.00028839,4]
[392762555,1761924639656,-321.14737002,0.00028839,4]
[392762556,1761924639664,-500.0,0.00028839,4]
[392762557,1761924639674,-500.0,0.00028839,4]
[392762558,1761924639683,-254.75262998,0.00028839,4]
[392762559,1761924639695,-262.09422786,0.00028839,4]
[392762560,1761924639705,-331.14219924,0.00028839,4]
[392762561,1761924639717,-168.85780076,0.00028839,4]
[392762562,1761924639726,-404.98898923,0.00028839,4]
[392762563,1761924639737,-95.01101077,0.00028839,4]
[392762564,1761924639746,-377.71867844,0.00028839,4]
[392762565,1761924639757,-122.28132156,0.00028839,4]
[392762566,1761924639766,-510.93713713,0.00028839,4]
[392762567,1761924639775,-31.99937731,0.00028839,4]
[392762568,1761924639847,-468.00062269,0.00028839,4]
[392762569,1761924639858,-500.0,0.00028839,4]
[392762570,1761924639868,-513.27305194,0.00028839,4]
[392762571,1761924639878,-510.49891063,0.00028839,4]
[392762572,1761924639887,-500.0,0.00028839,4]
[392762573,1761924639897,-500.0,0.00028839,4]
[392762574,1761924639906,-58.41244192,0.00028839,4]
[392762575,1761924639919,-441.58755808,0.00028839,4]
[392762576,1761924639928,-729.51,0.00028839,4]
[392762577,1761924639937,-500.0,0.00028839,4]
[392762578,1761924639947,-500.0,0.00028839,4]
[392762579,1761924639956,-513.51,0.00028839,4]
[392762580,1761924639965,-500.0,0.00028839,4]
[392762581,1761924639974,-500.0,0.00028839,4]
[392762582,1761924639984,-500.0,0.00028839,4]
[392762583,1761924639994,-500.0,0.00028839,4]
[392762584,1761924640004,-519.01634265,0.00028839,4]
[392762585,1761924640015,-500.0,0.00028839,4]
[392762586,1761924640025,-500.0,0.00028839,4]
[392762587,1761924640035,-500.0,0.00028839,4]
[392762589,1761924640047,-500.0,0.00028839,4]
[392762591,1761924640057,-500.0,0.00028839,4]
[392762593,1761924640066,-500.0,0.00028839,4]
[392762594,1761924640076,-500.0,0.00028839,4]
[392762595,1761924640086,-500.0,0.00028839,4]
[392762596,1761924640095,-575.52976414,0.00028839,4]
[392762597,1761924640104,-500.0,0.00028839,4]
[392762598,1761924640114,-500.0,0.00028839,4]
[392762599,1761924640124,-500.0,0.00028839,4]
[392762600,1761924640135,-343.44874091,0.00028839,4]
[392762601,1761924640146,-500.0,0.00028839,4]
[392762602,1761924640156,-833.07596949,0.00028863,2]
[392762603,1761924640165,-218.99699237,0.00028871,2]
[392762604,1761924640175,-509.0734881,0.00028873,5]
[392762605,1761924640184,-502.06084463,0.00028873,5]
[392762606,1761924640194,-500.0,0.00028873,5]
[392762607,1761924640203,-19.69941179,0.00028873,5]
[392762608,1761924640725,-480.30058821,0.00028873,5]
[392762609,1761924640735,-218.99699237,0.00029079,2]
[392762610,1761924640745,-507.44455948,0.00029092,4]
[392762611,1761924640754,-331.1543713,0.00029092,4]
[392762612,1761924640763,-3606.51,0.000291,4]
[392762613,1761924640772,-500.0,0.000291,4]
[392762614,1761924640893,-500.0,0.000291,4]
[392762615,1761924640903,-1563.31,0.000291,4]
[392762616,1761924640912,-833.07596949,0.00029103,2]
[392762617,1761924640921,-200.0,0.00029108,14]
[392762618,1761924640930,-500.0,0.00029108,4]
[392762619,1761924640940,-500.0,0.00029108,4]
[392762620,1761924640949,-500.0,0.00029108,4]
[392762621,1761924640959,-500.0,0.00029108,4]
[392762622,1761924640969,-500.0,0.00029108,4]
[392762623,1761924640979,-500.0,0.00029108,4]
[392762624,1761924640988,-407.97268703,0.00029108,4]
[392762625,1761924640998,-500.0,0.00029108,4]
[392762626,1761924641008,-1102.65,0.00029108,3]
[392762627,1761924641017,-500.0,0.00029108,4]
[392762628,1761924641026,-500.0,0.00029108,4]
[392762629,1761924641035,-941.22,0.0002911,4]
[392762630,1761924641045,-500.0,0.0002911,4]
[392762631,1761924641056,-363.0447906,0.0002911,4]
[392762644,1761924646620,-136.9552094,0.0002911,4]
[392762645,1761924646630,-500.0,0.0002911,4]
[392762646,1761924646639,-500.0,0.0002911,4]
[392762647,1761924646649,-115.42746725,0.0002911,4]
[392762648,1761924646660,-384.57253275,0.0002911,4]
[392762649,1761924646670,-123.14746725,0.0002911,4]
[392762698,1761924672014,2000.0,0.0002551,2]
[392762699,1761924674935,1690.20062183,0.0002551,2]
[392762700,1761924724532,259.58,0.000255,2]
[392762703,1761924907007,151.36689447,0.0003735,60]
[392762704,1761925136628,-150.0,0.00025698,2]
[392762707,1761925339743,224.10151531,0.0002551,2]
[392762729,1761925476261,10000.0,0.0002551,2]
[392762730,1761925484597,0.01,0.0002551,2]
[392762731,1761925484619,9999.99,0.0002551,2]
[392762732,1761925490876,0.02,0.0002551,2]
[392762733,1761925490897,9999.98,0.0002551,2]
[392762734,1761925496883,0.03,0.0002551,2]
[392762735,1761925496906,9999.97,0.0002551,2]
[392762736,1761925503108,0.04,0.0002551,2]
[392762737,1761925503133,9999.96,0.0002551,2]
[392762738,1761925513666,0.05,0.0002551,2]
[392762739,1761925513688,8514.95,0.0002551,2]
[392762745,1761925555566,150.0,0.00025452,2]
[392762792,1761925831914,-176.0,0.00026192,19]
[392762794,1761925831923,-153.45650044,0.00026222,2]
[392762796,1761925831932,-270.8707502,0.00026316,2]
[392762798,1761925831942,-596.7401418,0.00026322,2]
[392762800,1761925831951,-488.92192767,0.00027356,2]
[392762802,1761925831960,-25.86815164,0.00027427,2]
[392762806,1761925831995,-274.13184836,0.00027427,2]
[392762808,1761925832005,-300.0,0.00027427,2]
[392762810,1761925832015,-297.07895168,0.00027428,2]
[392762812,1761925832026,-2716.8730372,0.00027428,2]
[392762884,1761925837747,-7567.35766707,0.00027428,2]
[392762885,1761925837758,-1200.0,0.00027428,2]
[392762886,1761925837773,-300.0,0.00027428,2]
[392762888,1761925837783,-300.0,0.00027428,2]
[392762889,1761925837792,-1200.0,0.00027428,2]
[392762890,1761925837803,-300.0,0.00027428,2]
[392762891,1761925837812,-1252.52229793,0.00027429,2]
[392762892,1761925837822,-1955.10902443,0.00027429,2]
[392762893,1761925837831,-500.0,0.0002744,4]
[392762894,1761925837840,-151.0,0.00027441,2]
[392762895,1761925837851,-64.74966211,0.00027441,2]
[392762896,1761925837862,-86.25033789,0.00027441,2]
[392762897,1761925837871,-151.0,0.00027441,2]
[392762898,1761925837880,-151.0,0.00027441,2]
[392762899,1761925837890,-151.0,0.00027441,2]
[392762900,1761925837899,-151.0,0.00027441,2]
[392762901,1761925837909,-151.0,0.00027441,2]
[392762902,1761925837919,-151.0,0.00027441,2]
[392762903,1761925837928,-151.0,0.00027441,2]
[392762904,1761925837938,-151.0,0.00027441,2]
[392762905,1761925837947,-151.0,0.00027441,2]
[392762906,1761925837956,-151.0,0.00027441,2]
[392762907,1761925837965,-151.0,0.00027441,2]
[392762908,1761925837975,-151.0,0.00027441,2]
[392762909,1761925837984,-151.0,0.00027441,2]
[392762910,1761925837994,-151.0,0.00027441,2]
[392762911,1761925838005,-151.0,0.00027441,2]
[392762912,1761925838015,-151.0,0.00027441,2]
[392762913,1761925838025,-151.0,0.00027441,2]
[392762914,1761925838034,-151.0,0.00027441,2]
[392762915,1761925838044,-179.18,0.00027443,2]
[392762916,1761925838055,-161.9386094,0.00027447,4]
[392762917,1761925838064,-500.0,0.00027447,4]
[392762918,1761925838074,-3155.69,0.00027447,4]
[392762919,1761925838084,-500.0,0.00027447,4]
[392762920,1761925838093,-500.0,0.00027447,4]
[392762921,1761925838103,-500.0,0.00027447,4]
[392762922,1761925838113,-500.0,0.00027447,4]
[392762923,1761925838123,-815.83,0.00027447,4]
[392762924,1761925838133,-500.0,0.00027447,4]
[392762925,1761925838144,-1367.9,0.00027447,4]
[392762926,1761925838153,-500.0,0.00027447,2]
[392762927,1761925838163,-313.49178761,0.00027447,2]
[392762928,1761925838172,-500.0,0.00027447,2]
[392762929,1761925838182,-500.0,0.00027447,2]
[392762930,1761925838191,-500.0,0.00027447,2]
[392762931,1761925838201,-500.0,0.00027447,2]
[392762932,1761925838211,-500.0,0.00027447,2]
[392762933,1761925838220,-500.0,0.00027447,2]
[392762934,1761925838230,-500.0,0.00027447,2]
[392762935,1761925838239,-500.0,0.00027447,2]
[392762936,1761925838252,-293.73107927,0.00027447,2]
[392762937,1761925838262,-500.0,0.00027447,2]
[392762938,1761925838272,-500.0,0.00027447,2]
[392762939,1761925838281,-500.0,0.00027447,2]
[392762940,1761925838291,-500.0,0.00027447,2]
[392762941,1761925838301,-386.8803834,0.00027447,2]
[392762942,1761925838311,-500.0,0.00027447,2]
[392762943,1761925838321,-500.0,0.00027447,2]
[392762944,1761925838331,-500.0,0.00027447,2]
[392762945,1761925838341,-500.0,0.00027447,2]
[392762946,1761925838351,-500.0,0.00027447,2]
[392762947,1761925838362,-586.16140576,0.00027447,2]
[392762948,1761925838372,-500.0,0.00027447,2]
[392762949,1761925838382,-500.0,0.00027447,2]
[392762950,1761925838392,-500.0,0.00027447,2]
[392762951,1761925838402,-40.70686094,0.00027447,2]
[392762952,1761925838477,-459.29313906,0.00027447,2]
[392762953,1761925838487,-500.0,0.00027447,2]
[392762954,1761925838497,-500.0,0.00027447,2]
[392762955,1761925838511,-500.0,0.00027447,2]
[392762956,1761925838521,-500.0,0.00027447,2]
[392762957,1761925838531,-500.0,0.00027447,2]
[392762958,1761925838540,-500.0,0.00027447,2]
[392762959,1761925838550,-500.0,0.00027447,2]
[392762960,1761925838692,-500.0,0.00027447,2]
[392762961,1761925838703,-500.0,0.00027447,2]
[392762962,1761925838714,-500.0,0.00027447,2]
[392762963,1761925838724,-500.0,0.00027447,2]
[392762964,1761925838735,-500.0,0.00027447,2]
[392762965,1761925838745,-500.0,0.00027447,2]
[392762966,1761925838759,-500.0,0.00027447,2]
[392762967,1761925838774,-500.0,0.00027447,2]
[392762968,1761925838784,-500.0,0.00027447,2]
[392762969,1761925838794,-500.0,0.00027447,2]
[392762970,1761925838804,-500.0,0.00027447,4]
[392762971,1761925838816,-583.15317864,0.00027448,2]
[392762972,1761925838826,-2203.86,0.00027448,10]
[392762973,1761925838836,-1836.55,0.00027448,10]
[392762974,1761925838848,-1530.45,0.00027448,10]
[392762975,1761925838858,-177.0,0.00027452,2]
[392762976,1761925838868,-500.0,0.00027454,4]
[392762977,1761925838877,-500.0,0.00027454,4]
[392762978,1761925838887,-500.0,0.00027454,4]
[392762979,1761925838897,-500.0,0.00027454,4]
[392762980,1761925838908,-500.0,0.00027454,4]
[392762981,1761925838918,-589.92630213,0.00027454,4]
[392762982,1761925838929,-500.0,0.00027454,4]
[392762983,1761925838938,-500.0,0.00027454,4]
[392762984,1761925838948,-964.81,0.00027454,3]
[392762985,1761925838957,-500.0,0.00027454,4]
[392762986,1761925838966,-500.0,0.00027454,4]
[392762987,1761925838976,-383.28835109,0.00027454,2]
[392762988,1761925838985,-823.56,0.00027455,4]
[392762989,1761925838994,-500.0,0.00027455,4]
[392762990,1761925839005,-206.1972559,0.00027455,4]
[392762991,1761925839014,-234.99260577,0.00027455,4]
[392762992,1761925839024,-500.0,0.00027455,4]
[392762993,1761925839034,-500.0,0.00027455,4]
[392762994,1761925839043,-17.19732312,0.00027455,4]
[392763013,1761925840051,-482.80267688,0.00027455,4]
[392763014,1761925840060,-453.69016347,0.00027455,4]
[392763015,1761925840071,-46.30983653,0.00027455,4]
[392763016,1761925840080,-504.9214812,0.00027455,4]
[392763017,1761925840090,-500.0,0.00027455,4]
[392763018,1761925840099,-500.0,0.00027455,4]
[392763019,1761925840108,-500.0,0.00027455,4]
[392763020,1761925840117,-500.0,0.00027455,4]
[392763021,1761925840126,-421.25863286,0.00027455,4]
[392763022,1761925840137,-78.74136714,0.00027455,4]
[392763023,1761925840147,-500.0,0.00027455,4]
[392763024,1761925840156,-562.3,0.00027455,4]
[392763025,1761925840165,-500.0,0.00027455,4]
[392763026,1761925840174,-500.0,0.00027455,4]
[392763027,1761925840183,-500.0,0.00027455,4]
[392763028,1761925840191,-500.0,0.00027455,4]
[392763029,1761925840200,-500.0,0.00027455,4]
[392763030,1761925840209,-500.0,0.00027455,4]
[392763031,1761925840218,-500.0,0.00027455,4]
[392763032,1761925840227,-500.0,0.00027455,4]
[392763033,1761925840235,-500.0,0.00027455,4]
[392763034,1761925840244,-500.0,0.00027455,4]
[392763035,1761925840253,-973.63,0.00027455,4]
[392763036,1761925840262,-500.0,0.00027455,4]
[392763037,1761925840271,-500.0,0.00027455,4]
[392763038,1761925840280,-500.0,0.00027455,4]
[392763039,1761925840289,-500.0,0.00027455,4]
[392763040,1761925840297,-502.53,0.00027455,4]
[392763041,1761925840306,-846.15,0.00027455,4]
[392763042,1761925840315,-500.0,0.00027455,4]
[392763043,1761925840323,-500.0,0.00027455,4]
[392763044,1761925840332,-500.0,0.00027455,4]
[392763045,1761925840341,-500.0,0.00027455,4]
[392763046,1761925840350,-285.36651413,0.00027455,4]
[392763047,1761925840358,-3617.56,0.00027455,4]
[392763048,1761925840367,-500.0,0.00027455,4]
[392763049,1761925840376,-1730.34,0.00027455,4]
[392763050,1761925840385,-410.0786698,0.00027456,4]
[392763051,1761925840394,-500.0,0.00027456,4]
[392763053,1761925840403,-500.0,0.00027456,4]
[392763054,1761925840412,-200.0,0.00027457,14]
[392763055,1761925840422,-8363.80344893,0.00027458,2]
[392763056,1761925840433,-11245.0,0.00027458,2]
[392763063,1761925842953,-2361.57660984,0.00027458,2]
[392763064,1761925843009,-5612.75,0.00027458,2]
[392763101,1761925874961,-150.0,0.0002589,2]
[392763103,1761926106662,151.0,0.0003735,60]
[392763104,1761926107520,151.0,0.0003735,60]
[392763105,1761926108013,151.0,0.0003735,60]
[392763106,1761926108077,151.0,0.0003735,60]
[392763107,1761926108701,151.0,0.0003735,60]
[392763108,1761926109329,151.0,0.0003735,60]
[392763109,1761926110230,264.46703542,0.0003735,60]
[392763110,1761926110524,151.0,0.0003735,60]
[392763111,1761926111193,151.0,0.0003735,60]
[392763112,1761926111855,151.0,0.0003735,60]
[392763113,1761926112499,151.0,0.0003735,60]
[392763114,1761926112983,500.0,0.0003735,60]
[392763115,1761926113363,151.0,0.0003735,60]
[392763116,1761926113976,151.0,0.0003735,60]
[392763117,1761926114586,1000.0,0.0003735,60]